fUST/lending_fUST_20240710
["ID","MTS","AMOUNT","RATE_DAILY","PERIOD"]
[331582178,1720545040200,-500.0,0.00027397,2]
[331582179,1720545040215,-500.0,0.00027397,2]
[331582180,1720545040232,-500.0,0.00027397,2]
[331582181,1720545040249,-500.0,0.00027397,2]
[331582182,1720545040265,-500.0,0.00027397,2]
[331582183,1720545040280,-500.0,0.00027397,2]
[331582184,1720545040295,-500.0,0.00027397,2]
[331582185,1720545040311,-500.0,0.00027397,2]
[331582186,1720545040328,-500.0,0.00027397,2]
[331582187,1720545040342,-500.0,0.00027397,2]
[331582188,1720545040356,-500.0,0.00027397,2]
[331582189,1720545040370,-500.0,0.00027397,2]
[331582190,1720545040384,-500.0,0.00027397,2]
[331582191,1720545040398,-500.0,0.00027397,2]
[331582192,1720545040412,-500.0,0.00027397,2]
[331582193,1720545040426,-500.0,0.00027397,2]
[331582194,1720545040442,-151.0,0.00027397,7]
[331582195,1720545040456,-151.0,0.00027397,7]
[331582196,1720545040471,-151.0,0.00027397,7]
[331582197,1720545040484,-156.524891,0.00027397,7]
[331582198,1720545040498,-151.0,0.00027397,7]
[331582199,1720545040512,-156.363674,0.00027397,7]
[331582200,1720545040526,-151.0,0.00027397,7]
[331582201,1720545040540,-151.0,0.00027397,7]
[331582202,1720545040555,-2086.204454,0.00027397,7]
[331582203,1720545040570,-2086.204454,0.00027397,7]
[331582204,1720545040586,-151.0,0.00027397,7]
[331582205,1720545040672,-264.705373,0.00027397,7]
[331582206,1720545040688,-264.705373,0.00027397,7]
[331582207,1720545040698,-151.0,0.00027397,7]
[331582208,1720545040707,-279.12790183,0.00027397,7]
[331582209,1720545040716,-811.705217,0.00027397,7]
[331582210,1720545040729,-811.705217,0.00027397,7]
[331582211,1720545040738,-151.0,0.00027397,7]
[331582212,1720545040748,-151.0,0.00027397,7]
[331582213,1720545040757,-365.883066,0.00027397,7]
[331582214,1720545040766,-365.883066,0.00027397,7]
[331582215,1720545040775,-332.258929,0.00027397,2]
[331582216,1720545040784,-332.258929,0.00027397,2]
[331582217,1720545040793,-864.307878,0.00027397,7]
[331582218,1720545040803,-864.307878,0.00027397,7]
[331582219,1720545040813,-151.0,0.00027397,7]
[331582220,1720545040822,-381.192338,0.00027397,7]
[331582221,1720545040832,-151.0,0.00027397,7]
[331582222,1720545040841,-381.192338,0.00027397,7]
[331582223,1720545040851,-191.0559141,0.00027397,120]
[331582224,1720545040861,-157.285723,0.00027397,7]
[331582225,1720545040871,-553.664571,0.00027397,7]
[331582226,1720545040880,-553.664571,0.00027397,7]
[331582227,1720545040891,-553.664571,0.00027397,7]
[331582228,1720545040902,-553.664571,0.00027397,7]
[331582229,1720545040911,-151.0,0.00027397,7]
[331582230,1720545040921,-151.0,0.00027397,7]
[331582231,1720545040930,-211.677483,0.00027397,7]
[331582232,1720545040941,-268.216807,0.00027397,7]
[331582233,1720545040950,-150.0,0.00027399,2]
[331582234,1720545040961,-480.58413822,0.00027399,2]
[331582235,1720545040971,-293.45867215,0.00027399,2]
[331582236,1720545040980,-293.45867215,0.00027399,2]
[331582237,1720545040990,-154.65203293,0.00027399,2]
[331582238,1720545041000,-191.12784748,0.00027399,2]
[331582239,1720545041009,-175.37288532,0.000274,2]
[331582240,1720545041019,-3000.0,0.000274,2]
[331582241,1720545041028,-3000.0,0.0002741,2]
[331582242,1720545041039,-864.307878,0.0002741,7]
[331582243,1720545041049,-864.307878,0.0002741,7]
[331582244,1720545041059,-5502.465161,0.0002741,7]
[331582245,1720545041069,-553.664571,0.0002741,7]
[331582246,1720545041082,-5502.465161,0.0002741,7]
[331582247,1720545041091,-553.664571,0.0002741,7]
[331582248,1720545041101,-151.0,0.0002741,7]
[331582249,1720545041111,-203.653677,0.0002742,7]
[331582250,1720545041120,-157.100147,0.0002742,7]
[331582251,1720545041130,-151.0,0.0002742,7]
[331582252,1720545041142,-151.0,0.0002742,7]
[331582253,1720545041152,-2086.204454,0.0002742,7]
[331582254,1720545041162,-2086.204454,0.0002742,7]
[331582255,1720545041172,-151.0,0.0002742,7]
[331582256,1720545041182,-264.705373,0.0002742,7]
[331582257,1720545041201,-264.705373,0.0002742,7]
[331582259,1720545041211,-151.0,0.0002742,7]
[331582261,1720545041221,-3000.0,0.0002742,2]
[331582263,1720545041230,-811.705217,0.0002742,7]
[331582264,1720545041240,-811.705217,0.0002742,7]
[331582265,1720545041250,-151.0,0.0002742,7]
[331582266,1720545041259,-151.0,0.0002742,7]
[331582267,1720545041268,-365.883066,0.0002742,7]
[331582268,1720545041277,-365.883066,0.0002742,7]
[331582269,1720545041286,-332.258929,0.0002742,2]
[331582270,1720545041295,-332.258929,0.0002742,2]
[331582271,1720545041305,-151.0,0.0002742,7]
[331582272,1720545041314,-381.192338,0.0002742,7]
[331582273,1720545041324,-151.0,0.0002742,7]
[331582274,1720545041334,-381.192338,0.0002742,7]
[331582275,1720545041344,-3000.0,0.0002743,2]
[331582276,1720545041355,-3000.0,0.0002744,2]
[331582277,1720545041365,-3000.0,0.0002745,2]
[331582278,1720545041376,-3000.0,0.0002746,2]
[331582279,1720545041386,-3000.0,0.0002747,2]
[331582280,1720545041396,-3000.0,0.0002748,2]
[331582281,1720545041406,-151.0,0.0002749,7]
[331582282,1720545041416,-2276.71247203,0.0002749,2]
[331582283,1720545041432,-723.28752797,0.0002749,2]
[331582284,1720545041443,-43657.05388,0.000275,2]
[331582285,1720545041452,-151.0,0.000275,7]
[331582286,1720545041461,-151.0,0.000275,7]
[331582287,1720545041471,-2086.204454,0.000275,7]
[331582288,1720545041480,-2086.204454,0.000275,7]
[331582289,1720545041490,-151.0,0.000275,7]
[331582290,1720545041500,-264.705373,0.000275,7]
[331582291,1720545041510,-264.705373,0.000275,7]
[331582292,1720545041519,-151.0,0.000275,7]
[331582293,1720545041529,-3000.0,0.000275,2]
[331582294,1720545041539,-811.705217,0.000275,7]
[331582295,1720545041549,-811.705217,0.000275,7]
[331582296,1720545041559,-151.0,0.000275,7]
[331582297,1720545041570,-151.0,0.000275,7]
[331582298,1720545041580,-365.883066,0.000275,7]
[331582299,1720545041589,-365.883066,0.000275,7]
[331582300,1720545041600,-332.258929,0.000275,2]
[331582301,1720545041610,-332.258929,0.000275,2]
[331582302,1720545041620,-864.307878,0.000275,7]
[331582303,1720545041630,-864.307878,0.000275,7]
[331582304,1720545041641,-151.0,0.000275,7]
[331582305,1720545041651,-381.192338,0.000275,7]
[331582306,1720545041660,-151.0,0.000275,7]
[331582307,1720545041671,-381.192338,0.000275,7]
[331582308,1720545041680,-5502.465161,0.000275,7]
[331582309,1720545041698,-553.664571,0.000275,7]
[331582310,1720545041708,-5502.465161,0.000275,7]
[331582311,1720545041717,-553.664571,0.000275,7]
[331582312,1720545041727,-151.0,0.000275,7]
[331582313,1720545041737,-3000.0,0.0002751,2]
[331582314,1720545041747,-3000.0,0.0002752,2]
[331582315,1720545041757,-3000.0,0.0002753,2]
[331582316,1720545041768,-3000.0,0.0002754,2]
[331582317,1720545041777,-3000.0,0.0002755,2]
[331582318,1720545041787,-3000.0,0.0002756,2]
[331582319,1720545041796,-3000.0,0.0002757,2]
[331582320,1720545041805,-3000.0,0.0002758,2]
[331582321,1720545041815,-3000.0,0.0002759,2]
[331582322,1720545041880,-3000.0,0.000276,2]
[331582323,1720545041890,-3000.0,0.0002761,2]
[331582324,1720545041900,-3000.0,0.0002762,2]
[331582325,1720545041910,-3000.0,0.0002763,2]
[331582326,1720545041919,-3000.0,0.0002764,2]
[331582327,1720545041929,-152.078749,0.0002765,7]
[331582328,1720545041943,-3000.0,0.0002765,2]
[331582329,1720545041953,-811.705217,0.0002765,7]
[331582330,1720545041963,-811.705217,0.0002765,7]
[331582331,1720545041972,-365.883066,0.0002765,7]
[331582332,1720545041981,-365.883066,0.0002765,7]
[331582333,1720545041990,-332.258929,0.0002765,2]
[331582334,1720545041999,-332.258929,0.0002765,2]
[331582335,1720545042009,-151.0,0.0002765,7]
[331582336,1720545042019,-151.0,0.0002765,7]
[331582337,1720545042028,-3000.0,0.0002766,2]
[331582338,1720545042038,-3000.0,0.0002767,2]
[331582339,1720545042047,-151.0,0.0002768,7]
[331582340,1720545042056,-153.478367,0.0002768,7]
[331582341,1720545042066,-2086.204454,0.0002768,7]
[331582342,1720545042076,-2086.204454,0.0002768,7]
[331582343,1720545042085,-264.705373,0.0002768,7]
[331582344,1720545042095,-264.705373,0.0002768,7]
[331582345,1720545042105,-279.448186,0.0002768,7]
[331582346,1720545042115,-3000.0,0.0002768,2]
[331582347,1720545042125,-864.307878,0.0002768,7]
[331582348,1720545042134,-864.307878,0.0002768,7]
[331582349,1720545042146,-3000.0,0.0002769,2]
[331582350,1720545042156,-3000.0,0.000277,2]
[331582351,1720545042166,-553.664571,0.000277,7]
[331582352,1720545042175,-553.664571,0.000277,7]
[331582353,1720545042185,-3000.0,0.0002771,2]
[331582354,1720545042195,-5502.465161,0.0002771,7]
[331582355,1720545042206,-5502.465161,0.0002771,7]
[331582356,1720545042215,-151.0,0.0002771,7]
[331582357,1720545042225,-3000.0,0.0002772,2]
[331582358,1720545042235,-151.0,0.0002772,7]
[331582359,1720545042245,-151.0,0.0002772,7]
[331582360,1720545042255,-381.192338,0.0002772,7]
[331582361,1720545042264,-381.192338,0.0002772,7]
[331582362,1720545042273,-3000.0,0.0002773,2]
[331582363,1720545042282,-3000.0,0.0002774,2]
[331582364,1720545042291,-3000.0,0.0002775,2]
[331582365,1720545042300,-3000.0,0.0002776,2]
[331582366,1720545042310,-3432.907333,0.0002777,2]
[331582367,1720545042319,-5000.0,0.000278,2]
[331582368,1720545042329,-6114.55722591,0.00027899,2]
[331582369,1720545042339,-1328.65900423,0.000279,2]
[331582370,1720545042348,-31473.42748963,0.0002799,2]
[331582371,1720545042358,-154.65203293,0.00027999,2]
[331582372,1720545042367,-268.60335139,0.00028,2]
[331582373,1720545042377,-172.42394717,0.00028,30]
[331582374,1720545042386,-503.79102748,0.00028,2]
[331582375,1720545042395,-261.858,0.00028253,2]
[331582376,1720545042405,-1405.0,0.00028253,2]
[331582377,1720545042414,-150.0,0.000283,2]
[331582378,1720545042424,-150.0,0.00028399,2]
[331582379,1720545042433,-798.33156433,0.000285,2]
[331582380,1720545042445,-189961.79213932,0.0002877,2]
[331582381,1720545042455,-151.0,0.0002877,7]
[331582382,1720545042464,-154.495237,0.0002877,7]
[331582384,1720545042473,-2086.204454,0.0002877,7]
[331582386,1720545042483,-2086.204454,0.0002877,7]
[331582387,1720545042492,-264.705373,0.0002877,7]
[331582389,1720545042501,-264.705373,0.0002877,7]
[331582391,1720545042511,-811.705217,0.0002877,7]
[331582393,1720545042521,-811.705217,0.0002877,7]
[331582395,1720545042531,-151.0,0.0002877,7]
[331582397,1720545042540,-151.0,0.0002877,7]
[331582399,1720545042549,-365.883066,0.0002877,7]
[331582401,1720545042561,-365.883066,0.0002877,7]
[331582403,1720545042570,-332.258929,0.0002877,2]
[331582405,1720545042580,-332.258929,0.0002877,2]
[331582407,1720545042589,-864.307878,0.0002877,7]
[331582408,1720545042599,-864.307878,0.0002877,7]
[331582410,1720545042609,-151.0,0.0002877,7]
[331582411,1720545042618,-381.192338,0.0002877,7]
[331582413,1720545042627,-151.0,0.0002877,7]
[331582415,1720545042636,-381.192338,0.0002877,7]
[331582417,1720545042645,-5502.465161,0.0002877,7]
[331582420,1720545042654,-553.664571,0.0002877,7]
[331582424,1720545042663,-5502.465161,0.0002877,7]
[331582427,1720545042673,-553.664571,0.0002877,7]
[331582429,1720545042683,-151.0,0.0002877,7]
[331582431,1720545042695,-3553.94830844,0.000289,2]
[331582433,1720545042703,-1000.0,0.00029,29]
[331582435,1720545042712,-849.30884963,0.00029,2]
[331582437,1720545042722,-150.0,0.00029399,2]
[331582439,1720545042731,-248.18592096,0.000298,120]
[331582441,1720545042740,-233.028,0.0003,2]
[331582442,1720545042750,-471.62828703,0.0003,4]
[331582444,1720545042760,-170.45207762,0.0003,4]
[331582445,1720545042769,-752.61886642,0.0003,2]
[331582447,1720545042778,-1500.0,0.0003,2]
[331582449,1720545042787,-1500.0,0.0003,2]
[331582451,1720545042796,-1500.0,0.0003,2]
[331582453,1720545042806,-1385.5,0.0003,2]
[331582455,1720545042815,-154.63660398,0.0003,4]
[331582456,1720545042824,-7035.27148,0.0003,2]
[331582457,1720545042834,-643.5565645,0.0003,4]
[331582458,1720545042843,-304.22675637,0.0003,30]
[331582459,1720545042852,-783.19171264,0.0003,2]
[331582460,1720545042862,-220.0,0.0003,2]
[331582461,1720545042872,-164.371,0.00030243,2]
[331582463,1720545042880,-250.0,0.00030243,2]
[331582464,1720545042943,-150.0,0.00030399,2]
[331582465,1720545042952,-1000.0,0.00031,31]
[331582466,1720545042962,-500.0,0.00031,2]
[331582467,1720545042972,-150.0,0.00031253,2]
[331582468,1720545042981,-1405.0,0.00031253,2]
[331582470,1720545042991,-162.547627,0.00031631,2]
[331582471,1720545043001,-222916.94500332,0.000318,2]
[331582472,1720545043010,-151.0,0.000318,7]
[331582473,1720545043019,-2086.204454,0.000318,7]
[331582474,1720545043029,-2086.204454,0.000318,7]
[331582475,1720545043038,-264.705373,0.000318,7]
[331582476,1720545043048,-264.705373,0.000318,7]
[331582477,1720545043058,-811.705217,0.000318,7]
[331582478,1720545043068,-811.705217,0.000318,7]
[331582479,1720545043077,-151.0,0.000318,7]
[331582480,1720545043087,-151.0,0.000318,7]
[331582481,1720545043097,-365.883066,0.000318,7]
[331582482,1720545043107,-365.883066,0.000318,7]
[331582483,1720545043116,-332.258929,0.000318,2]
[331582484,1720545043125,-332.258929,0.000318,2]
[331582485,1720545043134,-864.307878,0.000318,7]
[331582486,1720545043145,-864.307878,0.000318,7]
[331582487,1720545043154,-151.0,0.000318,7]
[331582488,1720545043163,-381.192338,0.000318,7]
[331582489,1720545043172,-171.215581,0.000318,7]
[331582490,1720545043182,-381.192338,0.000318,7]
[331582491,1720545043193,-1000.0,0.000318,14]
[331582492,1720545043202,-1000.0,0.000318,14]
[331582493,1720545043211,-1000.0,0.000318,14]
[331582494,1720545043221,-1000.0,0.000318,14]
[331582495,1720545043230,-1000.0,0.000318,14]
[331582496,1720545043239,-1000.0,0.000318,14]
[331582497,1720545043248,-1000.0,0.000318,14]
[331582498,1720545043258,-1000.0,0.000318,14]
[331582499,1720545043267,-1000.0,0.000318,14]
[331582500,1720545043277,-1000.0,0.000318,14]
[331582501,1720545043286,-1000.0,0.000318,14]
[331582502,1720545043296,-1000.0,0.000318,14]
[331582503,1720545043305,-1000.0,0.000318,14]
[331582506,1720545043314,-1000.0,0.000318,14]
[331582508,1720545043323,-1000.0,0.000318,14]
[331582510,1720545043332,-1000.0,0.000318,14]
[331582511,1720545043343,-1000.0,0.000318,14]
[331582512,1720545043351,-1000.0,0.000318,14]
[331582513,1720545043360,-1000.0,0.000318,14]
[331582514,1720545043370,-1000.0,0.000318,14]
[331582515,1720545043379,-1000.0,0.000318,14]
[331582516,1720545043389,-1000.0,0.000318,14]
[331582517,1720545043398,-1000.0,0.000318,14]
[331582518,1720545043408,-1000.0,0.000318,14]
[331582519,1720545043417,-1000.0,0.000318,14]
[331582520,1720545043427,-1000.0,0.000318,14]
[331582521,1720545043436,-1000.0,0.000318,14]
[331582522,1720545043447,-1000.0,0.000318,14]
[331582523,1720545043456,-1000.0,0.000318,14]
[331582524,1720545043465,-1000.0,0.000318,14]
[331582525,1720545043474,-1000.0,0.000318,14]
[331582526,1720545043483,-1000.0,0.000318,14]
[331582527,1720545043492,-1000.0,0.000318,14]
[331582528,1720545043502,-1000.0,0.000318,14]
[331582529,1720545043511,-1000.0,0.000318,14]
[331582530,1720545043520,-1000.0,0.000318,14]
[331582531,1720545043529,-1000.0,0.000318,14]
[331582532,1720545043538,-1000.0,0.000318,14]
[331582533,1720545043547,-1000.0,0.000318,14]
[331582534,1720545043557,-1000.0,0.000318,14]
[331582535,1720545043567,-1000.0,0.000318,14]
[331582536,1720545043577,-1000.0,0.000318,14]
[331582537,1720545043586,-1000.0,0.000318,14]
[331582538,1720545043596,-1000.0,0.000318,14]
[331582539,1720545043605,-1000.0,0.000318,14]
[331582540,1720545043614,-1000.0,0.000318,14]
[331582541,1720545043623,-1000.0,0.000318,14]
[331582542,1720545043632,-1000.0,0.000318,14]
[331582543,1720545043641,-1000.0,0.000318,14]
[331582544,1720545043650,-1000.0,0.000318,14]
[331582545,1720545043660,-1000.0,0.000318,14]
[331582546,1720545043669,-1000.0,0.000318,14]
[331582547,1720545043678,-1000.0,0.000318,14]
[331582548,1720545043687,-1000.0,0.000318,14]
[331582549,1720545043698,-1000.0,0.000318,14]
[331582550,1720545043707,-1000.0,0.000318,14]
[331582551,1720545043715,-1000.0,0.000318,14]
[331582552,1720545043725,-1000.0,0.000318,14]
[331582553,1720545043734,-1000.0,0.000318,14]
[331582554,1720545043743,-1000.0,0.000318,14]
[331582555,1720545043752,-1000.0,0.000318,14]
[331582556,1720545043761,-1000.0,0.000318,14]
[331582557,1720545043770,-1000.0,0.000318,14]
[331582558,1720545043779,-727.159863,0.000318,14]
[331582559,1720545043788,-5502.465161,0.000318,7]
[331582560,1720545043797,-553.664571,0.000318,7]
[331582561,1720545043805,-5502.465161,0.000318,7]
[331582562,1720545043814,-553.664571,0.000318,7]
[331582563,1720545043823,-151.0,0.000318,7]
[331582564,1720545043833,-500.30375304,0.00032,30]
[331582565,1720545043842,-695.48082098,0.000325,60]
[331582566,1720545043901,-153.7904281,0.00032603,2]
[331582567,1720545043911,-150.0,0.00032877,2]
[331582568,1720545043920,-306.0,0.00032877,2]
[331582569,1720545043929,-1000.0,0.00033,33]
[331582570,1720545043938,-5500.0,0.00033,6]
[331582571,1720545043951,-220.0,0.00033,2]
[331582572,1720545043960,-220.0,0.00033,2]
[331582573,1720545043970,-1026.21392941,0.00033208,4]
[331582574,1720545043978,-1654.35149641,0.00033208,30]
[331582575,1720545043991,-254.23242842,0.00033208,4]
[331582576,1720545044001,-152.0,0.00033229,2]
[331582577,1720545044010,-811.705217,0.00033243,7]
[331582578,1720545044020,-811.705217,0.00033243,7]
[331582579,1720545044029,-365.883066,0.00033243,7]
[331582580,1720545044038,-365.883066,0.00033243,7]
[331582581,1720545044047,-332.258929,0.00033243,2]
[331582582,1720545044056,-332.258929,0.00033243,2]
[331582583,1720545044065,-864.307878,0.00033243,7]
[331582584,1720545044074,-864.307878,0.00033243,7]
[331582585,1720545044083,-151.0,0.00033243,7]
[331582586,1720545044093,-5502.465161,0.00033243,7]
[331582587,1720545044102,-5502.465161,0.00033243,7]
[331582588,1720545044112,-151.0,0.00033243,7]
[331582589,1720545044121,-150.0,0.00033243,2]
[331582590,1720545044130,-150.0,0.00033243,2]
[331582591,1720545044140,-153.0,0.00033276,2]
[331582592,1720545044151,-153.0,0.00033276,2]
[331582593,1720545044162,-153.0,0.00033276,2]
[331582594,1720545044171,-153.0,0.00033276,2]
[331582595,1720545044181,-153.0,0.00033276,2]
[331582596,1720545044191,-153.0,0.00033276,2]
[331582597,1720545044200,-153.0,0.00033276,2]
[331582598,1720545044210,-153.0,0.00033276,2]
[331582600,1720545044219,-153.0,0.00033276,2]
[331582601,1720545044228,-153.0,0.00033276,2]
[331582602,1720545044238,-153.0,0.00033276,2]
[331582603,1720545044248,-153.0,0.00033276,2]
[331582604,1720545044257,-674.548329,0.00033295,2]
[331582605,1720545044267,-252.105799,0.00033295,2]
[331582606,1720545044276,-13225.38876441,0.00033333,2]
[331582607,1720545044291,-12597.78178306,0.00033333,2]
[331582608,1720545044303,-898.78971019,0.00033333,2]
[331582609,1720545044314,-4368.99388601,0.00033333,2]
[331582633,1720545046658,-268.216807,0.00027397,7]
[331582634,1720545046672,-25099.23099173,0.00033333,2]
[331582635,1720545046685,-2086.204454,0.00033333,7]
[331582636,1720545046700,-1952.26186549,0.00033333,7]
[331582640,1720545047116,-3132.18181723,0.00023966,4]
[331582641,1720545047125,-1000.0,0.00024,24]
[331582642,1720545047134,-16306.49,0.0002482,3]
[331582643,1720545047146,-268.216807,0.00027397,7]
[331582644,1720545047156,-268.216807,0.000275,7]
[331582645,1720545047165,-268.216807,0.0002771,7]
[331582646,1720545047174,-154.65203293,0.00027999,2]
[331582647,1720545047184,-268.216807,0.0002877,7]
[331582648,1720545047193,-268.216807,0.000318,7]
[331582649,1720545047205,-268.216807,0.00033243,7]
[331582650,1720545047215,-133.94258851,0.00033333,7]
[331582651,1720545047224,-264.705373,0.00033333,7]
[331582652,1720545047237,-264.705373,0.00033333,7]
[331582653,1720545047246,-151.0,0.00033333,7]
[331582654,1720545047255,-151.0,0.00033333,7]
[331582655,1720545047264,-381.192338,0.00033333,7]
[331582656,1720545047273,-381.192338,0.00033333,7]
[331582657,1720545047282,-553.664571,0.00033333,7]
[331582658,1720545047291,-553.664571,0.00033333,7]
[331582659,1720545047300,-153.0,0.00033824,2]
[331582660,1720545047310,-153.0,0.00033824,2]
[331582661,1720545047319,-153.0,0.00033824,2]
[331582662,1720545047329,-153.0,0.00033824,2]
[331582663,1720545047338,-500.0,0.00033834,2]
[331582664,1720545047347,-500.0,0.00033834,2]
[331582665,1720545047357,-355.31,0.00033971,2]
[331582666,1720545047367,-150.0,0.00034253,2]
[331582667,1720545047377,-1405.0,0.00034253,2]
[331582668,1720545047387,-153.0,0.00034438,2]
[331582669,1720545047396,-1282.49405735,0.00034728,12]
[331582670,1720545047406,-1000.0,0.000348,3]
[331582671,1720545047416,-1000.0,0.000348,3]
[331582672,1720545047426,-192.802,0.00034823,30]
[331582673,1720545047436,-19212.29267926,0.000349,2]
[331582674,1720545047446,-151.0,0.000349,7]
[331582675,1720545047455,-811.705217,0.000349,7]
[331582676,1720545047464,-811.705217,0.000349,7]
[331582677,1720545047474,-365.883066,0.000349,7]
[331582678,1720545047484,-365.883066,0.000349,7]
[331582679,1720545047494,-332.258929,0.000349,2]
[331582680,1720545047505,-332.258929,0.000349,2]
[331582681,1720545047513,-864.307878,0.000349,7]
[331582682,1720545047522,-864.307878,0.000349,7]
[331582683,1720545047531,-151.0,0.000349,7]
[331582684,1720545047541,-5502.465161,0.000349,7]
[331582685,1720545047551,-5502.465161,0.000349,7]
[331582686,1720545047562,-151.0,0.000349,7]
[331582687,1720545047572,-268.216807,0.000349,7]
[331582688,1720545047583,-1662.41784921,0.00035,4]
[331582689,1720545047592,-1000.0,0.00035,35]
[331582690,1720545047601,-899.9496,0.00035,4]
[331582691,1720545047610,-1183.21854684,0.00035,2]
[331582692,1720545047619,-465.22077606,0.00035,2]
[331582693,1720545047628,-5677.12573406,0.00035,10]
[331582694,1720545047637,-399.7881962,0.00035,2]
[331582695,1720545047646,-151.0,0.00035,7]
[331582696,1720545047655,-2086.204454,0.00035,7]
[331582697,1720545047665,-2086.204454,0.00035,7]
[331582698,1720545047674,-264.705373,0.00035,7]
[331582699,1720545047683,-264.705373,0.00035,7]
[331582700,1720545047694,-811.705217,0.00035,7]
[331582701,1720545047705,-811.705217,0.00035,7]
[331582702,1720545047716,-151.0,0.00035,7]
[331582703,1720545047727,-227.217301,0.00035,7]
[331582704,1720545047737,-365.883066,0.00035,7]
[331582705,1720545047747,-365.883066,0.00035,7]
[331582706,1720545047758,-332.258929,0.00035,2]
[331582707,1720545047768,-332.258929,0.00035,2]
[331582708,1720545047777,-864.307878,0.00035,7]
[331582709,1720545047850,-864.307878,0.00035,7]
[331582710,1720545047862,-151.0,0.00035,7]
[331582711,1720545047871,-381.192338,0.00035,7]
[331582712,1720545047881,-381.192338,0.00035,7]
[331582713,1720545047891,-223.85065798,0.00035,120]
[331582714,1720545047901,-5502.465161,0.00035,7]
[331582715,1720545047911,-553.664571,0.00035,7]
[331582716,1720545047920,-5502.465162,0.00035,7]
[331582717,1720545047930,-553.664571,0.00035,7]
[331582718,1720545047939,-151.0,0.00035,7]
[331582719,1720545047950,-162050.89154825,0.00035,7]
[331582720,1720545048390,273.37336231,9.9e-05,2]
[331582721,1720545051092,16032.95521457,0.00012,2]
[331582722,1720545053928,273.37336231,9.9e-05,2]
[331582723,1720545062467,273.37336231,9.9e-05,2]
[331582724,1720545070078,390.37606611,0.00015,2]
[331582725,1720545070836,273.37336231,9.9e-05,2]
[331582726,1720545076158,1159.23553938,0.00012,2]
[331582727,1720545079452,273.37336231,9.9e-05,2]
[331582728,1720545088075,273.37336231,9.9e-05,2]
[331582729,1720545088814,314.97022038,0.00012,2]
[331582730,1720545089904,789.859108,0.00014,2]
[331582731,1720545093051,3170.42169249,0.00012,4]
[331582732,1720545096698,273.37336231,9.9e-05,2]
[331582733,1720545105566,273.37336231,9.9e-05,2]
[331582734,1720545114133,273.37336231,9.9e-05,2]
[331582735,1720545121638,1598.67495677,0.00012,2]
[331582736,1720545122828,273.37336231,9.9e-05,2]
[331582737,1720545127167,1159.23553938,0.00012,2]
[331582738,1720545131650,273.37336231,9.9e-05,2]
[331582739,1720545135258,630.01061366,0.00012,2]
[331582740,1720545139992,273.37336231,9.9e-05,2]
[331582741,1720545148631,273.37336231,9.9e-05,2]
[331582742,1720545157374,273.37336231,9.9e-05,2]
[331582743,1720545176622,1596.26216925,0.00012,2]
[331582744,1720545186174,1159.23553938,0.00012,2]
[331582745,1720545243486,273.37336231,9.9e-05,2]
[331582746,1720545245171,1159.23553938,0.00014545,2]
[331582747,1720545252867,273.37336231,9.9e-05,2]
[331582748,1720545262744,273.37336231,9.9e-05,2]
[331582749,1720545271619,273.37336231,9.9e-05,2]